bitfinex/quotes_ETHUSD_20260113
["timestamp","ask_amount","ask_price","bid_price","bid_amount"]
[1768325069345,1.72010786,3179.4,3178.7,3.14588573]
[1768325069677,1.72010786,3179.4,3178.6,3.14698635]
[1768325070066,1.72010786,3179.4,3178.9,0.001]
[1768325071269,3.14521254,3179.5,3178.9,0.001]
[1768325071470,4.86476194,3180.0,3178.9,1.78896502]
[1768325071671,0.247,3179.9,3178.9,1.78896502]
[1768325071976,4.86476194,3180.0,3178.9,1.78896502]
[1768325072182,5.11176194,3180.0,3178.9,1.78896502]
[1768325072900,6.4671309,3179.9,3178.9,1.78896502]
[1768325073051,3.14631901,3180.4,3179.8,1.78796502]
[1768325073052,0.002,3180.4,3179.8,1.78796502]
[1768325073475,0.247,3180.8,3179.7,4.74702304]
[1768325073679,0.247,3180.8,3179.6,1.78796502]
[1768325074478,0.249,3181.0,3179.9,1.78796502]
[1768325074648,3.39267564,3181.0,3180.1,1.78796502]
[1768325074846,3.39267564,3181.0,3180.1,4.93248835]
[1768325075279,3.39267564,3181.0,3180.2,1.73849554]
[1768325075280,0.002,3181.0,3180.2,1.73849554]
[1768325075456,0.249,3181.0,3180.2,1.73849554]
[1768325075660,0.002,3181.0,3180.2,1.73849554]
[1768325075983,1.76535537,3181.5,3180.8,1.73849554]
[1768325075984,0.002,3181.5,3180.8,1.73849554]
[1768325076183,0.002,3182.0,3180.9,2.15934509]
[1768325076860,0.002,3182.3,3181.8,3.1428751]
[1768325077249,0.002,3182.3,3181.7,4.88144554]
[1768325077651,0.002,3182.7,3181.8,1.73849554]
[1768325078096,6.28600354,3182.7,3181.8,1.73849554]
[1768325078309,6.28600354,3182.7,3181.9,0.17384955]
[1768325078592,1.76335537,3182.6,3181.4,3.14318441]
[1768325078893,3.14218381,3182.5,3181.4,3.14326805]
[1768325079206,1.76335537,3182.4,3181.3,0.247]
[1768325079392,1.76335537,3182.4,3181.3,3.39035901]
[1768325079707,1.76335537,3182.4,3181.4,0.51288545]
[1768325079864,3.14218381,3182.5,3181.4,0.51288545]
[1768325080496,3.14218381,3182.5,3181.4,2.25138099]
[1768325080899,8.04752553,3182.6,3181.4,2.25138099]
[1768325081103,8.04752553,3182.6,3181.4,1.73849554]
[1768325081606,1.76335537,3182.5,3181.3,3.39034289]
[1768325081804,0.002,3182.4,3181.3,3.39034289]
[1768325082106,0.002,3182.4,3181.3,5.12883843]
[1768325082804,0.002,3182.4,3181.3,1.98549554]
[1768325083094,8.22465349,3182.3,3181.3,0.75989427]
[1768325083300,1.76335537,3182.2,3181.3,0.247]
[1768325083472,0.03928223,3182.1,3181.3,0.247]
[1768325083679,1.76335537,3182.2,3181.3,0.247]
[1768325083875,0.84409403,3182.1,3181.3,0.247]
[1768325084397,2.6074494,3182.1,3181.3,0.247]
[1768325084601,2.56816717,3182.1,3181.3,0.247]
[1768325085304,1.76335537,3181.9,3180.9,0.17384955]
[1768325085468,1.76335537,3181.9,3180.9,3.31760168]
[1768325085667,1.76335537,3181.9,3181.0,3.47540467]
[1768325086069,3.14267756,3182.0,3181.1,3.14356001]
[1768325086283,3.14267756,3182.0,3181.0,0.33176017]
[1768325086284,0.249,3182.4,3181.3,3.14335205]
[1768325086478,0.249,3182.4,3181.3,4.88184759]
[1768325086684,3.14239261,3182.3,3181.3,4.88184759]
[1768325086893,0.33913926,3182.2,3181.3,4.88184759]
[1768325087299,3.14249222,3182.2,3181.3,4.88184759]
[1768325087499,3.14249222,3182.2,3181.4,1.73849554]
[1768325088518,3.38941086,3182.3,3181.4,1.73849554]
[1768325088815,6.53182172,3182.3,3181.4,1.73849554]
[1768325090279,1.76335537,3182.2,3181.2,0.247]
[1768325090479,2.59287308,3182.1,3181.2,0.247]
[1768325090899,1.80263883,3182.0,3181.2,0.247]
[1768325091427,8.04890801,3181.9,3181.2,0.247]
[1768325091725,1.76335537,3181.8,3181.2,0.247]
[1768325091885,2.01035537,3181.8,3180.6,3.14405766]
[1768325092078,1.76335537,3181.6,3180.6,3.94673863]
[1768325092281,1.76335537,3181.6,3180.7,3.14393878]
[1768325092611,1.38087959,3181.7,3181.0,1.73849554]
[1768325092905,0.247,3181.7,3180.9,3.1437318]
[1768325093597,3.39001469,3181.7,3180.8,3.14386317]
[1768325094905,1.76335537,3181.6,3180.8,3.14386317]
[1768325095292,1.76335537,3181.6,3180.8,6.28772634]
[1768325095608,0.247,3181.7,3180.9,1.73849554]
[1768325095904,0.58598958,3181.7,3181.0,4.88216105]
[1768325096107,3.48197276,3181.7,3181.0,1.73849554]
[1768325096275,0.58598958,3181.7,3181.0,1.73849554]
[1768325096835,3.72898188,3181.7,3181.0,1.73849554]
[1768325096990,0.33898958,3181.7,3180.9,3.14372115]
[1768325097195,3.38992698,3181.8,3180.9,3.14372115]
[1768325097799,1.76335537,3181.7,3180.8,3.14386317]
[1768325098915,1.76335537,3181.5,3180.2,3.14545503]
[1768325099127,1.76335537,3181.5,3180.2,0.001]
[1768325099128,1.76335537,3181.4,3180.2,0.001]
[1768325099284,1.76335537,3181.2,3180.2,0.001]
[1768325099774,1.76335537,3181.0,3180.2,0.001]
[1768325100487,1.76335537,3181.0,3179.6,0.247]
[1768325100488,7.77368923,3181.0,3179.6,5.13049285]
[1768325100823,1.76335537,3180.9,3179.7,4.88344348]
[1768325100991,2.78772429,3180.8,3179.7,1.73849554]
[1768325101333,2.01035537,3180.8,3179.6,0.247]
[1768325101506,2.01035537,3180.8,3179.6,3.3920157]
[1768325101882,6.28792404,3180.7,3179.6,5.13051124]
[1768325102301,6.28792404,3180.7,3179.7,1.73849554]
[1768325103793,8.05127941,3180.7,3179.6,3.3920157]
[1768325103999,1.76335537,3180.5,3179.4,1.73849554]
[1768325104198,1.76335537,3180.5,3179.4,4.88366833]
[1768325104518,1.76335537,3180.5,3179.4,4.88371696]
[1768325105019,1.76335537,3180.5,3179.4,4.88374117]
[1768325105234,2.07759134,3180.4,3179.9,0.001]
[1768325105389,0.25931833,3180.4,3179.9,0.001]
[1768325105580,0.82982794,3180.6,3179.9,0.001]
[1768325105787,0.247,3180.6,3179.9,4.85172751]
[1768325106087,1.81827301,3181.2,3179.9,1.70700021]
[1768325106288,0.247,3181.1,3180.0,1.70600021]
[1768325107111,0.18026438,3181.4,3180.0,1.70600021]
[1768325107289,3.1430565,3181.7,3180.0,1.70600021]
[1768325107622,2.31440596,3181.6,3180.2,1.70600021]
[1768325107848,8.10481351,3181.4,3180.3,3.14435745]
[1768325107990,1.81827301,3181.3,3180.3,3.14435745]
[1768325108389,0.247,3181.2,3180.3,3.14435745]
[1768325108714,0.03929458,3181.1,3180.2,3.14442172]
[1768325108915,2.02872977,3181.1,3180.0,3.1446495]
[1768325109113,2.02872977,3181.1,3179.9,3.14572082]
[1768325109498,2.02872977,3181.1,3180.0,3.14461078]
[1768325109694,2.02872977,3181.1,3179.9,0.001]
[1768325110025,1.81827301,3180.9,3179.9,3.14573679]
[1768325110226,2.66813169,3180.8,3179.9,0.001]
[1768325110396,2.06527301,3180.7,3179.9,0.001]
[1768325110921,1.81827301,3180.4,3178.7,1.70600021]
[1768325111125,1.81827301,3180.4,3178.7,1.95300021]
[1768325111423,1.81827301,3180.4,3179.0,3.14558496]
[1768325112294,4.96263046,3180.3,3179.1,1.70600021]
[1768325112632,2.5115202,3180.2,3179.1,0.48525852]
[1768325112921,1.81827301,3180.1,3178.9,0.001]
[1768325113126,1.81827301,3180.1,3178.9,1.70700021]
[1768325113317,1.81827301,3180.1,3178.9,0.001]
[1768325113512,1.81827301,3179.9,3178.9,0.001]
[1768325113713,1.81827301,3179.7,3178.9,0.001]
[1768325113925,1.81827301,3179.5,3178.9,0.001]
[1768325114494,8.10857094,3179.5,3178.6,0.001]
[1768325114698,1.81827301,3179.4,3178.6,0.001]
[1768325115141,1.81827301,3179.4,3178.3,0.001]
[1768325115455,1.12537203,3179.3,3178.3,0.001]
[1768325116015,1.12537203,3179.3,3178.3,1.7982552]
[1768325116220,0.247,3179.2,3178.3,1.7982552]
[1768325116533,0.247,3179.2,3178.5,1.7972552]
[1768325116733,0.247,3179.2,3178.6,0.001]
[1768325117818,3.39245303,3179.2,3178.6,0.001]
[1768325118019,4.04622329,3179.2,3178.6,0.001]
[1768325118740,1.80688066,3179.1,3178.6,0.001]
[1768325119653,3.79922329,3179.2,3178.6,0.001]
[1768325119819,0.247,3179.0,3178.6,0.001]
[1768325120452,2.05388066,3179.0,3178.6,0.001]
[1768325120752,8.30378047,3178.9,3178.3,0.001]
[1768325121055,1.80688066,3178.8,3178.3,0.001]
[1768325122451,3.39271052,3179.0,3178.3,0.001]
[1768325122863,3.14571052,3179.0,3178.3,0.001]
[1768325123040,0.247,3178.9,3178.3,0.001]
[1768325124121,1.80688066,3178.8,3178.3,0.001]
[1768325125851,4.9527535,3178.8,3178.3,0.001]
[1768325126730,1.80688066,3178.7,3177.7,3.39388698]
[1768325126938,1.80688066,3178.5,3177.5,0.000804]
[1768325127148,1.80688066,3178.5,3177.5,6.29503561]
[1768325127353,0.247,3178.4,3177.6,0.80922908]
[1768325127961,1.80688066,3180.0,3178.1,1.7972552]
[1768325128127,1.80688066,3179.6,3178.2,1.7972552]
[1768325128834,1.80688066,3179.6,3178.0,0.247]
[1768325129054,1.80688066,3179.4,3178.1,3.14653409]
[1768325129368,0.002,3178.8,3178.2,0.33935341]
[1768325130430,0.002,3178.8,3178.1,3.14653409]
[1768325130631,0.002,3178.8,3178.0,3.39360456]
[1768325131033,0.002,3178.8,3178.0,0.247]
[1768325131234,1.80888066,3178.8,3178.0,0.247]
[1768325131435,1.80888066,3178.8,3178.0,3.39359011]
[1768325131844,2.05588066,3178.8,3178.0,3.14659011]
[1768325132939,2.05588066,3178.8,3177.9,3.14668622]
[1768325133376,2.05588066,3178.8,3177.8,0.001]
[1768325133696,0.002,3178.8,3178.0,1.7972552]
[1768325133971,0.002,3178.8,3178.1,1.7972552]
[1768325135945,0.002,3178.8,3178.1,4.94377534]
[1768325136345,0.002,3178.8,3178.2,0.03146435]
[1768325136547,0.002,3178.8,3178.2,1.87386905]
[1768325137973,0.002,3178.8,3178.2,1.8424047]
[1768325138347,0.002,3178.8,3178.1,3.14652014]
[1768325138548,0.002,3178.8,3178.2,0.03146435]
[1768325138745,0.002,3178.8,3178.1,3.96004704]
[1768325139390,0.002,3178.8,3178.2,0.03146435]
[1768325139675,0.002,3178.8,3178.2,3.17787122]
[1768325139890,0.002,3178.8,3178.3,1.8424047]
[1768325140097,0.247,3179.5,3178.5,1.8424047]
[1768325140385,1.75103922,3179.8,3178.5,1.87386608]
[1768325140704,0.29316929,3179.7,3178.5,2.12086608]
[1768325140856,1.99803922,3179.8,3178.5,2.0894047]
[1768325141191,1.75103922,3179.7,3178.5,2.0894047]
[1768325141490,1.75103922,3179.7,3178.6,2.13269764]
[1768325141652,1.75103922,3179.7,3178.7,8.13428502]
[1768325141987,0.247,3179.8,3178.8,1.8424047]
[1768325143687,3.144811,3179.9,3178.8,1.8424047]
[1768325143886,0.247,3179.8,3179.0,1.8424047]
[1768325144188,0.247,3179.8,3179.1,0.49881469]
[1768325144497,1.75103922,3179.7,3179.1,0.49881469]
[1768325144684,6.29091264,3180.2,3179.1,0.49881469]
[1768325144685,1.75103922,3180.1,3179.1,0.49881469]
[1768325144853,0.002,3180.2,3179.2,1.8424047]
[1768325145058,0.002,3180.2,3179.1,0.49881469]
[1768325145059,0.002,3180.2,3179.4,1.8424047]
[1768325145367,0.002,3180.5,3179.8,1.8424047]
[1768325145975,0.002,3180.5,3179.8,4.98722864]
[1768325146170,0.002,3180.5,3179.9,1.8424047]
[1768325146793,0.002,3180.5,3180.0,0.81320805]
[1768325146991,0.002,3180.5,3179.8,3.14483976]
[1768325147289,0.002,3180.5,3179.7,3.14489818]
[1768325147490,0.002,3180.5,3179.8,3.14483459]
[1768325147694,0.002,3180.5,3179.8,4.98723929]
[1768325147886,0.002,3180.5,3180.0,1.8424047]
[1768325149165,0.002,3180.5,3179.9,0.81321827]
[1768325149366,0.002,3180.5,3179.8,3.14484443]
[1768325150120,0.002,3180.5,3179.7,3.14494915]
[1768325150292,1.79234121,3180.5,3179.5,3.14514134]
[1768325150479,1.75303922,3180.5,3179.5,3.14514134]
[1768325150812,1.75303922,3180.5,3179.4,3.14522947]
[1768325150968,1.75103922,3180.3,3179.1,3.1455367]
[1768325151297,1.99803922,3180.2,3179.1,3.14551633]
[1768325151496,1.99803922,3180.2,3178.9,3.14572406]
[1768325151497,2.03734492,3180.2,3178.9,3.14572406]
[1768325151892,1.75103922,3180.0,3178.8,6.29168238]
[1768325152685,1.75103922,3180.0,3178.8,3.14584119]
[1768325152880,2.55505418,3179.9,3178.8,3.14584119]
[1768325153069,2.55505418,3179.9,3178.8,6.29168238]
[1768325153277,2.55505418,3179.9,3178.8,8.13408708]
[1768325153473,0.80401496,3179.9,3178.8,8.13408708]
[1768325153911,3.14485187,3179.8,3178.8,8.13408708]
[1768325154222,3.14485187,3179.8,3178.9,0.83810871]
[1768325154376,4.89589109,3179.8,3178.7,3.39290334]
[1768325154579,8.04074296,3179.8,3178.8,3.14583939]
[1768325155390,8.04074296,3179.8,3178.5,1.8424047]
[1768325155391,2.0373511,3179.7,3178.5,3.14606068]
[1768325155722,2.0373511,3179.7,3178.4,0.001]
[1768325155887,2.0373511,3179.7,3178.4,3.14718172]
[1768325156094,8.04133642,3179.5,3178.4,3.14718172]
[1768325156392,8.04133642,3179.5,3178.4,0.001]
[1768325156967,1.75103922,3179.4,3178.4,0.001]
[1768325157997,4.12915754,3179.6,3178.6,1.8424047]
[1768325158222,3.14475297,3179.9,3178.8,1.8424047]
[1768325158506,3.14475297,3179.9,3178.9,1.87386212]
[1768325158684,0.247,3179.8,3178.9,1.8424047]
[1768325159692,3.14469552,3180.0,3179.0,1.8424047]
[1768325159920,3.39169552,3180.0,3179.1,0.18424047]
[1768325160227,3.39169552,3180.0,3179.1,3.32972557]
[1768325161096,1.79034863,3179.9,3179.1,0.18424047]
[1768325161295,1.79034863,3179.9,3178.9,3.14572098]
[1768325161529,1.75103922,3179.9,3178.9,3.14572098]
[1768325161716,0.03931064,3179.8,3178.9,3.14572098]
[1768325162029,1.75103922,3179.9,3178.9,3.14572098]
[1768325162208,3.14485722,3179.8,3178.8,6.29168238]
[1768325162411,3.14485722,3179.8,3178.9,0.81340871]
[1768325163725,1.75103922,3179.9,3178.9,0.81340871]
[1768325163912,0.247,3179.8,3179.0,1.87386113]
[1768325164123,0.002,3180.2,3179.4,1.8424047]
[1768325164320,0.002,3180.5,3179.6,1.8424047]
[1768325164545,0.002,3180.5,3179.6,2.0894047]
[1768325166245,0.002,3180.5,3179.8,1.79847977]
[1768325167350,2.07370119,3181.0,3179.8,1.79847977]
[1768325168058,0.247,3181.0,3179.8,1.79847977]
[1768325168348,3.39066672,3181.0,3180.0,8.08778793]
[1768325168554,0.247,3181.1,3180.1,1.79847977]
[1768325169250,2.07370119,3181.1,3180.0,3.14465408]
[1768325169551,2.07370119,3181.1,3180.0,6.28930816]
[1768325169748,2.07370119,3181.1,3180.1,0.62893082]
[1768325170046,0.247,3181.1,3180.2,1.79847977]
[1768325170218,3.39062465,3181.1,3180.2,4.94289788]
[1768325171454,6.5342493,3181.1,3180.2,1.79847977]
[1768325171663,3.39062465,3181.1,3180.2,1.79847977]
[1768325171835,3.39062465,3181.1,3180.2,5.43721316]
[1768325172045,0.247,3181.1,3180.2,5.43721316]
[1768325172450,3.39056806,3181.1,3180.2,5.43721316]
[1768325173660,3.39056806,3181.1,3180.2,3.63873339]
[1768325174395,3.39056806,3181.1,3180.2,0.49429803]
[1768325174690,6.05334744,3181.1,3180.0,1.79847977]
[1768325174835,1.82670119,3181.0,3179.8,3.14481387]
[1768325175033,1.82670119,3181.0,3179.9,3.14470912]
[1768325175253,1.82670119,3181.0,3180.1,3.14453059]
[1768325175457,0.91969155,3181.0,3180.2,3.17588201]
[1768325175656,0.91969155,3181.0,3180.2,3.14443745]
[1768325176074,1.7935922,3180.9,3180.2,3.14443745]
[1768325176275,1.7935922,3180.9,3179.9,3.14475297]
[1768325176437,0.91969155,3181.0,3180.0,1.85380748]
[1768325176768,0.002,3180.8,3180.1,1.82236094]
[1768325176967,0.002,3180.8,3180.2,1.8538055]
[1768325177268,0.002,3180.8,3180.2,1.82236094]
[1768325177444,0.002,3180.8,3180.2,0.29520008]
[1768325177770,0.002,3180.8,3180.3,0.03144357]
[1768325178459,0.002,3180.8,3180.3,3.17577406]
[1768325179698,0.002,3181.1,3180.7,1.82236094]
[1768325179900,0.002,3181.1,3180.4,1.82236094]
[1768325180104,0.002,3181.1,3180.5,1.85380253]
[1768325180509,0.002,3181.1,3180.6,6.28812172]
[1768325180717,0.002,3181.1,3180.6,3.14406086]
[1768325180917,0.002,3181.1,3180.6,3.95511644]
[1768325181078,0.002,3181.1,3180.6,0.81105558]
[1768325181278,1.7955922,3181.1,3180.3,3.14427371]
[1768325181483,1.7955922,3181.1,3180.4,3.14425108]
[1768325181717,0.002,3181.1,3180.1,2.06936094]
[1768325181917,0.002,3181.1,3180.4,3.14420824]
[1768325182086,0.002,3181.1,3180.5,3.14415774]
[1768325182281,0.002,3181.1,3180.4,3.14421831]
[1768325182481,0.002,3181.1,3180.3,3.1443501]
[1768325182684,2.11012911,3181.1,3180.2,3.14440642]
[1768325182879,2.35712911,3181.1,3180.0,0.247]
[1768325183210,1.7935922,3181.0,3180.2,3.14445498]
[1768325184527,4.93728893,3181.0,3180.1,3.1445552]
[1768325184823,1.7935922,3180.9,3179.9,0.001]
[1768325184982,2.28732109,3180.8,3180.0,3.14460618]
[1768325185707,0.49372889,3180.8,3180.1,0.03144555]
[1768325185905,3.14369673,3181.0,3180.0,6.28926026]
[1768325186101,3.14369673,3181.0,3180.0,8.1116212]
[1768325186315,0.247,3180.9,3180.1,0.03144555]
[1768325186512,0.247,3180.9,3180.0,8.1116212]
[1768325186812,1.7935922,3180.8,3180.0,3.1445955]
[1768325187123,2.62639579,3180.8,3180.0,3.1445955]
[1768325187278,1.7935922,3180.7,3180.1,3.1445355]
[1768325187682,1.7935922,3180.7,3180.0,3.14463161]
[1768325187878,1.7935922,3180.7,3180.1,3.1445517]
[1768325188632,1.7935922,3180.7,3180.3,0.001]
[1768325188833,2.39530944,3180.7,3180.3,0.001]
[1768325190036,0.247,3180.9,3180.3,0.001]
[1768325190186,2.11012911,3181.1,3180.3,0.001]
[1768325190391,0.247,3181.0,3180.3,0.001]
[1768325190599,2.11012911,3181.1,3180.3,0.001]
[1768325190908,0.002,3181.8,3180.5,1.82236094]
[1768325191234,0.29316692,3181.7,3180.5,1.82236094]
[1768325191421,3.14491137,3181.8,3180.7,1.82236094]
[1768325191422,3.39191137,3181.8,3180.7,1.82236094]
[1768325191628,2.08688131,3181.7,3180.6,0.247]
[1768325191821,1.7935922,3181.7,3180.6,0.247]
[1768325192318,1.7935922,3181.5,3180.6,0.45393609]
[1768325192636,1.7935922,3181.5,3180.6,0.247]
[1768325193113,1.7935922,3181.5,3180.7,3.14396202]
[1768325195314,3.14302059,3181.7,3180.7,3.14396202]
[1768325195513,0.29366175,3181.6,3180.7,7.97412914]
[1768325195714,1.9509051,3181.8,3180.8,1.6862051]
[1768325195938,1.9509051,3181.8,3180.9,0.79741291]
[1768325196544,5.09379361,3181.8,3180.9,0.79741291]
[1768325196744,1.7019051,3181.7,3180.9,0.79741291]
[1768325196919,1.7019051,3181.7,3180.7,6.28792404]
[1768325197511,0.249,3181.8,3180.7,7.97412914]
[1768325198019,5.09380162,3181.8,3180.7,7.97412914]
[1768325198424,1.7019051,3181.7,3180.7,3.14396202]
[1768325198605,1.7019051,3181.7,3180.7,3.48305822]
[1768325198805,1.7019051,3181.7,3180.7,3.14396202]
[1768325199535,3.14307266,3181.6,3180.6,4.83026596]
[1768325199702,4.84497776,3181.6,3180.6,1.6862051]
[1768325199906,1.7019051,3181.5,3181.0,0.001]
[1768325200207,0.48649778,3181.4,3181.0,0.001]
[1768325200938,2.18840288,3181.4,3181.0,0.001]
[1768325201118,1.9489051,3181.3,3180.3,0.001]
[1768325201319,3.14346787,3181.2,3180.3,0.001]
[1768325201525,0.5092373,3181.1,3180.3,0.001]
[1768325205116,3.65285943,3181.1,3180.3,0.001]
[1768325205566,1.7019051,3181.0,3180.3,0.001]
[1768325205717,1.7019051,3180.8,3180.3,0.001]
[1768325206129,1.9489051,3180.8,3180.3,0.001]
[1768325206314,1.7019051,3180.6,3180.3,0.001]
[1768325206514,0.82364338,3180.7,3180.3,0.001]
[1768325207060,1.7019051,3180.6,3180.3,0.001]
[1768325207546,1.7019051,3180.9,3180.3,0.001]
[1768325207750,1.7019051,3180.8,3180.3,0.001]
[1768325208450,4.84570245,3180.9,3180.3,0.001]
[1768325208627,8.86405739,3180.9,3180.3,0.001]
[1768325208829,1.7019051,3180.8,3180.3,0.001]
[1768325210222,3.14396202,3180.7,3180.3,0.001]
[1768325210553,4.84586712,3180.7,3180.3,0.001]
[1768325211219,7.98982914,3180.7,3180.3,0.001]
[1768325211415,1.7019051,3180.5,3180.3,0.001]
[1768325211630,1.9489051,3180.5,3179.9,0.001]
[1768325211920,1.7019051,3180.3,3179.2,3.14539474]
[1768325212521,3.14445632,3180.2,3179.3,3.14531923]
[1768325212843,0.247,3180.1,3179.2,4.83160941]
[1768325213168,0.65359126,3180.0,3179.2,3.14540431]
[1768325214156,2.35549636,3180.0,3179.0,1.6862051]
[1768325214331,1.7019051,3179.9,3178.7,3.14592985]
[1768325214533,1.7019051,3179.9,3178.6,1.6862051]
[1768325214534,1.7019051,3179.7,3178.6,1.6862051]
[1768325214859,2.21272823,3179.7,3178.7,0.48323326]
[1768325215628,1.7019051,3179.6,3178.7,0.48323326]
[1768325215828,1.7019051,3179.6,3178.4,0.001]
[1768325216060,1.7019051,3179.6,3178.5,0.247]
[1768325216758,1.7019051,3179.4,3178.5,0.247]
[1768325218254,6.2902972,3179.5,3178.5,1.6862051]
[1768325218433,6.99510923,3179.5,3178.6,1.6862051]
[1768325220268,3.1451486,3179.5,3178.7,1.6862051]
[1768325220432,0.247,3179.6,3178.7,1.7176645]
[1768325220433,3.39207358,3179.6,3178.7,1.7176645]
[1768325220766,3.14507358,3179.6,3178.7,1.6862051]
[1768325221139,6.29014716,3179.6,3178.7,1.6862051]
[1768325221635,7.99160884,3179.8,3178.7,1.6862051]
[1768325221939,2.81554383,3179.7,3178.8,0.247]
[1768325222325,2.81554383,3179.7,3178.5,0.16872051]
[1768325222326,1.7019051,3179.6,3178.5,5.001042]
[1768325222526,1.7019051,3179.6,3178.6,0.247]
[1768325222761,1.7019051,3179.6,3178.6,3.39303683]
[1768325222936,1.7019051,3179.6,3178.7,3.14592897]
[1768325223463,1.11363873,3179.7,3178.7,7.97807423]
[1768325223666,3.14465408,3180.0,3178.9,4.83194733]
[1768325223867,6.28930816,3180.0,3178.9,4.83194733]
[1768325224033,1.7019051,3179.9,3178.9,4.83194733]
[1768325224232,0.79912133,3179.8,3178.9,4.83194733]
[1768325224456,2.50102643,3179.8,3178.9,3.14574223]
[1768325224866,2.50102643,3179.8,3179.0,0.001]
[1768325225365,1.8446474,3179.7,3179.0,0.001]
[1768325226067,0.79912133,3179.8,3179.0,1.8795051]
[1768325226269,3.1446041,3180.1,3179.2,1.8785051]
[1768325226970,4.9892515,3180.1,3179.2,1.8785051]
[1768325227149,4.9892515,3180.1,3179.1,0.43495051]
[1768325227150,8.13387472,3180.1,3179.1,0.43495051]
[1768325227350,1.8446474,3180.0,3179.1,0.43495051]
[1768325227874,1.8446474,3179.7,3179.0,0.001]
[1768325228066,1.8446474,3179.5,3179.0,0.001]
[1768325228477,1.8446474,3179.3,3179.0,0.001]
[1768325230574,4.98961699,3179.7,3179.0,0.001]
[1768325230775,4.989736,3179.6,3179.0,0.001]
[1768325231075,2.343621,3179.5,3179.0,0.001]
[1768325232490,5.48883239,3179.5,3179.0,0.001]
[1768325232993,3.64418499,3179.5,3179.0,0.001]
[1768325233156,0.247,3180.1,3179.0,0.001]
[1768325233519,0.247,3180.1,3179.0,1.91096153]
[1768325233810,3.39156382,3180.1,3179.0,1.8795051]
[1768325233967,5.23621122,3180.1,3179.0,1.8795051]
[1768325234175,5.23621122,3180.1,3179.1,0.03145544]
[1768325234500,5.23621122,3180.1,3179.1,0.22255149]
[1768325234686,5.23621122,3180.1,3179.2,3.39244539]
[1768325234858,3.39156382,3180.1,3179.2,3.39244539]
[1768325235284,5.23621122,3180.1,3179.2,3.39244539]
[1768325235988,5.23621122,3180.1,3179.2,3.42389984]
[1768325236167,5.23621122,3180.1,3179.2,4.27886436]
[1768325236563,5.23621122,3180.1,3179.2,1.10196452]
[1768325236887,1.82437001,3180.0,3179.1,0.247]
[1768325237082,8.36049765,3180.1,3179.1,0.247]
[1768325237285,1.82437001,3180.0,3179.1,0.247]
[1768325237592,1.82437001,3180.0,3179.2,0.001]
[1768325237759,0.002,3179.8,3179.2,0.001]
[1768325238358,0.002,3179.8,3179.2,3.14642477]
[1768325238687,0.002,3179.8,3179.3,1.78812676]
[1768325239261,1.82437001,3180.0,3179.2,6.63131264]
[1768325239462,1.82437001,3180.0,3179.3,0.03145346]
[1768325240672,1.82437001,3180.0,3179.4,3.14524753]
[1768325240991,1.82437001,3180.0,3179.3,3.14531412]
[1768325241291,1.82437001,3180.0,3179.4,0.66311814]
[1768325242763,1.82437001,3180.0,3179.5,3.1451486]
[1768325242958,1.82437001,3180.0,3179.6,0.247]
[1768325243390,0.002,3180.1,3179.6,0.247]
[1768325244290,1.82437001,3180.0,3179.6,0.247]
[1768325244459,1.82437001,3180.0,3179.6,0.96704153]
[1768325244663,0.002,3180.1,3179.6,0.96704153]
[1768325245268,0.002,3180.1,3179.2,2.12856924]
[1768325245269,1.82637001,3180.1,3179.2,0.34044248]
[1768325245492,1.86567695,3180.1,3179.3,3.39229823]
[1768325245695,1.82637001,3180.1,3179.3,3.39229823]
[1768325246495,1.82637001,3180.1,3179.4,3.14524651]
[1768325246876,1.82637001,3180.1,3179.5,3.14512768]
[1768325247070,0.002,3180.1,3179.6,3.14504058]
[1768325247693,0.002,3180.1,3179.5,0.65374711]
[1768325247893,0.002,3180.1,3179.5,3.14512719]
[1768325249923,0.002,3180.1,3179.5,6.29027579]
[1768325250069,0.002,3180.5,3179.6,1.82057725]
[1768325250271,0.002,3179.8,3179.6,1.82057725]
[1768325250577,0.002,3180.5,3179.6,1.82057725]
[1768325250776,0.002,3180.8,3180.0,1.78812676]
[1768325251015,0.002,3180.8,3180.1,0.247]
[1768325251517,0.002,3180.8,3180.2,3.14445632]
[1768325252587,0.002,3180.8,3180.2,6.28891264]
[1768325252983,0.002,3180.8,3180.2,3.14445632]
[1768325253185,0.002,3180.8,3180.3,0.65359989]
[1768325254222,0.002,3180.8,3180.3,3.39132698]
[1768325255526,1.80139539,3180.8,3180.3,0.247]
[1768325256726,1.80139539,3180.8,3180.2,3.14436968]
[1768325257025,1.80139539,3180.8,3180.2,3.39136968]
[1768325257608,1.80139539,3180.8,3180.2,0.247]
[1768325257808,1.80139539,3180.8,3180.2,3.39136114]
[1768325258107,1.80139539,3180.8,3180.2,4.04495314]
[1768325259831,1.7933954,3180.8,3180.2,4.04495314]
[1768325261830,0.002,3181.2,3180.2,4.04495314]
[1768325262033,1.79939539,3181.1,3180.2,4.04495314]
[1768325262402,1.79939539,3181.1,3180.5,0.001]
[1768325262602,1.79939539,3181.0,3180.5,0.001]
[1768325263016,0.002,3180.8,3180.5,0.001]
[1768325265728,0.002,3180.8,3180.5,1.92746557]
[1768325266139,0.002,3180.8,3180.6,6.28812172]
[1768325266860,0.002,3180.8,3180.6,3.14406086]
[1768325267006,0.002,3180.8,3180.7,0.82156773]
[1768325268454,0.002,3181.2,3180.7,0.82156773]
[1768325268610,0.002,3181.2,3180.7,1.92646557]
[1768325269212,0.002,3181.2,3180.7,2.17346557]
[1768325269412,0.002,3181.2,3180.7,5.3174244]
[1768325269648,0.002,3181.2,3180.7,3.39095883]
[1768325270346,0.002,3181.2,3180.7,0.247]
[1768325271839,1.97953493,3181.1,3180.5,0.001]
[1768325272025,1.79939539,3181.1,3180.5,0.001]
[1768325272548,1.8386912,3181.0,3180.5,0.001]
[1768325272734,1.79939539,3181.0,3180.5,0.001]
[1768325275230,1.79939539,3181.0,3180.8,0.001]
[1768325276653,0.002,3181.2,3180.8,0.001]
[1768325276853,1.79939539,3181.1,3180.8,0.001]
[1768325277353,0.002,3181.2,3180.8,0.001]
[1768325281649,0.002,3181.4,3180.8,0.001]
[1768325281848,1.80139539,3181.4,3180.8,0.001]
[1768325282619,0.002,3181.4,3180.8,0.001]
[1768325282821,0.002,3181.4,3180.8,1.01014503]